bitfinex/quotes_BTCUSD_20250607
["timestamp","ask_amount","ask_price","bid_price","bid_amount"]
[1749320284964,0.17876541,105870.0,105860.0,2.47739692]
[1749320289041,0.14746541,105870.0,105860.0,2.47739692]
[1749320293808,0.14746541,105870.0,105860.0,2.10207692]
[1749320294021,0.14746541,105870.0,105860.0,2.47727692]
[1749320299508,0.14746541,105870.0,105860.0,2.49606659]
[1749320299706,0.14746541,105870.0,105860.0,2.51176659]
[1749320300322,0.14746541,105870.0,105860.0,2.78396659]
[1749320300538,0.14746541,105870.0,105860.0,2.80016659]
[1749320306275,0.14746541,105870.0,105860.0,2.79500243]
[1749320310807,0.14746541,105870.0,105860.0,2.77880243]
[1749320311962,0.14746541,105870.0,105860.0,2.76310243]
[1749320312188,0.17896541,105870.0,105860.0,2.76302243]
[1749320312410,0.17896541,105870.0,105860.0,2.6689933]
[1749320312640,0.17896541,105870.0,105860.0,2.74417804]
[1749320313417,0.17896541,105870.0,105860.0,2.36905804]
[1749320313668,0.17896541,105870.0,105860.0,2.74417804]
[1749320316967,0.14746541,105870.0,105860.0,2.74417804]
[1749320318404,0.14746541,105870.0,105860.0,2.45677804]
[1749320318648,0.14746541,105870.0,105860.0,2.74417804]
[1749320321683,0.17966541,105870.0,105860.0,2.74417804]
[1749320322737,0.17966541,105870.0,105860.0,2.47197804]
[1749320324677,0.2080007,105870.0,105860.0,0.70051509]
[1749320324930,0.17966541,105870.0,105860.0,0.58456631]
[1749320325134,0.59075235,105870.0,105860.0,0.9931887]
[1749320325348,0.60019736,105870.0,105860.0,0.9931887]
[1749320325521,0.59075235,105870.0,105860.0,0.93678648]
[1749320325727,0.18911033,105870.0,105860.0,0.93678648]
[1749320325956,0.18911033,105870.0,105860.0,0.95032733]
[1749320326357,0.19855534,105870.0,105860.0,0.95032733]
[1749320326559,0.19855534,105870.0,105860.0,0.94832733]
[1749320327062,0.18911033,105870.0,105860.0,0.94932733]
[1749320328394,0.19855543,105870.0,105860.0,0.94932733]
[1749320328607,0.18911033,105870.0,105860.0,0.94932733]
[1749320329281,0.59075235,105870.0,105860.0,0.57420733]
[1749320329488,0.19855534,105870.0,105860.0,0.94932733]
[1749320330174,0.18911033,105870.0,105860.0,0.94932733]
[1749320330378,0.19855534,105870.0,105860.0,0.94932733]
[1749320330989,0.18911033,105870.0,105860.0,0.94932733]
[1749320331421,0.19855516,105870.0,105860.0,0.94932733]
[1749320331560,0.19855507,105870.0,105860.0,0.94932733]
[1749320332018,0.19855498,105870.0,105860.0,0.94932733]
[1749320332564,0.20800008,105870.0,105860.0,0.94932733]
[1749320332769,0.20799999,105870.0,105860.0,0.94932733]
[1749320333593,0.60964201,105870.0,105860.0,0.94936769]
[1749320333818,0.61908711,105870.0,105860.0,0.99634211]
[1749320334029,0.62853229,105870.0,105860.0,0.99634211]
[1749320334245,0.61908755,105870.0,105860.0,0.99634211]
[1749320334467,0.59075226,105870.0,105860.0,0.99634211]
[1749320334682,0.60019718,105870.0,105860.0,0.99634211]
[1749320334889,0.59075226,105870.0,105860.0,0.99634211]
[1749320335020,0.59075226,105870.0,105860.0,0.70890211]
[1749320335238,0.60019736,105870.0,105860.0,0.99630211]
[1749320335427,0.60019727,105870.0,105860.0,0.99630211]
[1749320335617,0.60019727,105870.0,105860.0,0.9587735]
[1749320335815,0.79855417,105870.0,105860.0,0.53132825]
[1749320336138,0.79855417,105870.0,105860.0,0.90648825]
[1749320336339,0.79855417,105870.0,105860.0,0.91593468]
[1749320336568,0.79855417,105870.0,105860.0,0.91493468]
[1749320336769,0.79955417,105870.0,105860.0,0.91493468]
[1749320337046,0.79955417,105870.0,105860.0,0.92438102]
[1749320337207,0.80055417,105870.0,105860.0,0.91493468]
[1749320337413,0.80055417,105870.0,105860.0,0.92438102]
[1749320337679,0.80055417,105870.0,105860.0,0.91493468]
[1749320337832,0.61164316,105870.0,105860.0,0.9338271]
[1749320338038,0.61164316,105870.0,105860.0,0.94327327]
[1749320338283,0.20055507,105870.0,105860.0,0.95271908]
[1749320338457,0.6116421,105870.0,105860.0,0.95271908]
[1749320338656,0.59275226,105870.0,105860.0,0.95271908]
[1749320339505,0.59275217,105870.0,105860.0,0.95271908]
[1749320339829,0.61164192,105870.0,105860.0,0.95271908]
[1749320340122,0.602197,105870.0,105860.0,0.95271908]
[1749320340709,0.58330743,105870.0,105860.0,0.95271908]
[1749320340935,0.59275226,105870.0,105860.0,0.95271908]
[1749320341421,0.60219727,105870.0,105860.0,0.95271908]
[1749320341628,0.18166541,105870.0,105860.0,0.95271908]
[1749320341831,0.19111033,105870.0,105860.0,0.95271908]
[1749320342655,0.20055543,105870.0,105860.0,0.95271908]
[1749320342796,0.19111033,105870.0,105860.0,0.95271908]
[1749320342995,0.20055534,105870.0,105860.0,0.95271908]
[1749320343979,0.21000052,105870.0,105860.0,0.95271908]
[1749320344160,0.21944588,105870.0,105860.0,0.95271926]
[1749320344368,0.21000052,105870.0,105860.0,0.95271864]
[1749320344781,0.20055534,105870.0,105860.0,0.95271864]
[1749320345327,0.19111033,105870.0,105860.0,0.95271864]
[1749320345529,0.59275217,105870.0,105860.0,0.95271864]
[1749320345732,0.20055507,105870.0,105860.0,0.95271864]
[1749320347478,0.21000008,105870.0,105860.0,0.95271864]
[1749320348535,0.20055507,105870.0,105860.0,0.95271864]
[1749320349211,0.20055507,105870.0,105860.0,0.99024725]
[1749320349617,0.18166541,105870.0,105860.0,1.0047881]
[1749320349829,0.14946541,105870.0,105860.0,1.42283012]
[1749320350067,0.14946541,105870.0,105860.0,1.49433234]
[1749320350280,0.14946541,105870.0,105860.0,1.45680373]
[1749320351740,0.14946541,105870.0,105860.0,1.85844575]
[1749320352237,0.14946541,105870.0,105860.0,2.09994353]
[1749320353687,0.14946541,105870.0,105860.0,2.17512827]
[1749320355631,0.14946541,105870.0,105860.0,2.51512827]
[1749320356901,0.14846541,105870.0,105860.0,2.51512827]
[1749320357635,0.14746541,105870.0,105860.0,2.51512827]
[1749320357844,0.14746541,105870.0,105860.0,2.51612827]
[1749320372526,0.14746541,105870.0,105860.0,2.51512827]
[1749320372755,0.14746541,105870.0,105860.0,2.51612827]
[1749320372975,0.14746541,105870.0,105860.0,2.51812827]
[1749320378625,0.14746541,105870.0,105860.0,2.44294353]
[1749320379890,0.14746541,105870.0,105860.0,2.53697266]
[1749320382581,0.14746541,105870.0,105860.0,2.56534866]
[1749320389051,0.14746541,105870.0,105860.0,2.56518866]
[1749320393406,0.14746541,105870.0,105860.0,2.83738866]
[1749320395033,0.17916541,105870.0,105860.0,2.40416664]
[1749320395326,0.17916541,105870.0,105860.0,2.31013751]
[1749320395541,0.14746541,105870.0,105860.0,2.38529404]
[1749320395917,0.14746541,105870.0,105860.0,2.78693606]
[1749320407686,0.14746541,105870.0,105860.0,2.83720866]
[1749320407886,0.14746541,105870.0,105860.0,2.88720866]
[1749320408072,0.14746541,105870.0,105860.0,3.28885068]
[1749320408280,0.14746541,105870.0,105860.0,2.88720866]
[1749320408506,0.14746541,105870.0,105860.0,2.79317953]
[1749320408713,0.01729595,105870.0,105860.0,2.88707104]
[1749320409551,0.01729595,105870.0,105860.0,2.88507104]
[1749320410093,0.01729595,105870.0,105860.0,3.28971306]
[1749320410516,0.01729595,105870.0,105860.0,2.89207104]
[1749320411147,0.01729595,105870.0,105860.0,3.59207104]
[1749320412349,0.01729595,105870.0,105860.0,2.89207104]
[1749320414187,0.01729595,105870.0,105860.0,3.38647104]
[1749320417246,0.01729595,105870.0,105860.0,3.09444817]
[1749320417449,0.04889595,105870.0,105860.0,3.07559504]
[1749320417679,0.04889595,105870.0,105860.0,3.09013589]
[1749320418303,0.04889595,105870.0,105860.0,2.78777791]
[1749320419343,0.04889595,105870.0,105860.0,2.38212541]
[1749320419559,0.04889595,105870.0,105860.0,2.38412541]
[1749320419790,0.04889595,105870.0,105860.0,2.38712541]
[1749320424583,0.01729595,105870.0,105860.0,2.38712541]
[1749320424817,0.01729595,105870.0,105860.0,2.41962541]
[1749320425283,0.01729595,105870.0,105860.0,2.34458703]
[1749320425746,0.01729595,105870.0,105860.0,2.41960436]
[1749320426697,0.01729595,105870.0,105860.0,2.419608]
[1749320427612,0.01729595,105870.0,105860.0,2.34458703]
[1749320428329,0.01729595,105870.0,105860.0,2.43847854]
[1749320441319,0.01729595,105870.0,105860.0,2.83995094]
[1749320443161,0.00218227,105870.0,105860.0,3.1476114]
[1749320443599,0.00218227,105870.0,105860.0,3.27925218]
[1749320444221,0.00218227,105870.0,105860.0,3.32925218]
[1749320445056,0.00218227,105870.0,105860.0,2.92770021]
[1749320445488,0.00218227,105870.0,105860.0,3.62770021]
[1749320446611,0.00218227,105870.0,105860.0,2.12459627]
[1749320446816,0.00218227,105870.0,105860.0,2.92770021]
[1749320447054,0.00218227,105870.0,105860.0,2.64046021]
[1749320447266,0.00218227,105870.0,105860.0,2.92766021]
[1749320447446,0.00218227,105870.0,105860.0,2.88983745]
[1749320450178,0.00218227,105870.0,105860.0,2.79601943]
[1749320450565,0.14251871,105880.0,105870.0,0.23178732]
[1749320450707,0.15831871,105880.0,105870.0,0.82355174]
[1749320450914,0.14887013,105880.0,105870.0,0.82355174]
[1749320451494,0.13942155,105880.0,105870.0,0.82355174]
[1749320451695,0.12997297,105880.0,105870.0,0.82355174]
[1749320452118,0.10472439,105880.0,105870.0,0.82355174]
[1749320452512,0.09527581,105880.0,105870.0,0.82455174]
[1749320452642,0.09527581,105880.0,105870.0,1.02963877]
[1749320452845,0.08582723,105880.0,105870.0,1.02963877]
[1749320453329,0.07637865,105880.0,105870.0,1.02963877]
[1749320453744,0.06693007,105880.0,105870.0,1.02963877]
[1749320453953,0.06693007,105880.0,105870.0,1.05801077]
[1749320454161,0.05748149,105880.0,105870.0,1.1330645]
[1749320454534,0.04803291,105880.0,105870.0,1.1330645]
[1749320454887,0.03858422,105880.0,105870.0,1.1650645]
[1749320455276,0.02913553,105880.0,105870.0,1.09001077]
[1749320455726,0.01968684,105880.0,105870.0,1.09001077]
[1749320456135,0.01023815,105880.0,105870.0,1.16506361]
[1749320456559,0.00078946,105880.0,105870.0,1.16506361]
[1749320456979,0.262894,105890.0,105880.0,0.5717668]
[1749320457192,0.26294183,105890.0,105880.0,1.74241825]
[1749320457402,0.25712617,105890.0,105880.0,1.74241825]
[1749320457533,0.24212617,105890.0,105880.0,1.81747109]
[1749320459367,0.24212617,105890.0,105880.0,2.06243109]
[1749320464174,0.24212617,105890.0,105880.0,2.33459109]
[1749320466785,0.24212617,105890.0,105880.0,1.93303912]
[1749320466985,0.24212617,105890.0,105880.0,2.33459109]
[1749320469214,0.21122617,105890.0,105880.0,2.73614306]
[1749320469583,0.21122617,105890.0,105880.0,2.33459109]
[1749320470206,0.21122617,105890.0,105880.0,2.73614306]
[1749320470999,0.21122617,105890.0,105880.0,2.33459109]
[1749320474070,0.21122617,105890.0,105880.0,2.73614306]
[1749320475092,0.21122617,105890.0,105880.0,2.33459109]
[1749320475290,0.21122617,105890.0,105880.0,2.33559109]
[1749320475519,0.21122617,105890.0,105880.0,2.33659109]
[1749320477372,0.21122617,105890.0,105880.0,2.26153825]
[1749320477614,0.24262617,105890.0,105880.0,2.26153825]
[1749320478077,0.24262617,105890.0,105880.0,2.33664917]
[1749320481254,0.24262617,105890.0,105880.0,1.9350972]
[1749320481450,0.24262617,105890.0,105880.0,2.33664917]
[1749320484188,0.22662617,105890.0,105880.0,2.33664917]
[1749320485809,0.21122617,105890.0,105880.0,2.33664917]
[1749320489297,0.21122617,105890.0,105880.0,1.9350972]
[1749320489506,0.22712617,105890.0,105880.0,2.33664917]
[1749320490248,0.22712617,105890.0,105880.0,1.9350972]
[1749320490451,0.22712617,105890.0,105880.0,2.33664917]
[1749320490749,0.24332617,105890.0,105880.0,2.33664917]
[1749320491966,0.24332617,105890.0,105880.0,2.33656917]
[1749320495070,0.21122617,105890.0,105880.0,2.73812114]
[1749320495426,0.21122617,105890.0,105880.0,2.33656917]
[1749320497722,0.21122617,105890.0,105880.0,2.73812114]
[1749320499730,0.21122617,105890.0,105880.0,2.66301022]
[1749320500340,0.21122617,105890.0,105880.0,2.73811185]
[1749320501728,0.20479144,105890.0,105880.0,2.33655988]
[1749320503559,0.20479144,105890.0,105880.0,2.26145825]
[1749320504034,0.20479144,105890.0,105880.0,1.88673825]
[1749320504242,0.23589144,105890.0,105880.0,1.93501297]
[1749320504445,0.23589144,105890.0,105880.0,1.96338697]
[1749320504650,0.23589144,105890.0,105880.0,2.36493894]
[1749320507508,0.23589144,105890.0,105880.0,2.36489894]
[1749320507962,0.23589144,105890.0,105880.0,1.96334697]
[1749320509106,0.23589144,105890.0,105880.0,1.67622697]
[1749320509311,0.24533439,105890.0,105880.0,1.91617084]
[1749320509569,0.23589144,105890.0,105880.0,1.91617084]
[1749320509744,0.24533439,105890.0,105880.0,1.91617084]
[1749320510734,0.23589144,105890.0,105880.0,1.91417084]
[1749320510946,0.24533439,105890.0,105880.0,1.91417084]
[1749320512052,0.23589144,105890.0,105880.0,1.91417084]
[1749320512704,0.24533439,105890.0,105880.0,1.64201084]
[1749320512919,0.24533448,105890.0,105880.0,1.64201084]
[1749320513358,0.23589144,105890.0,105880.0,1.64201084]
[1749320514439,0.24533448,105890.0,105880.0,1.64201084]
[1749320514639,0.23589144,105890.0,105880.0,1.64201084]
[1749320514908,0.23589144,105890.0,105880.0,1.34411084]
[1749320515995,0.24533439,105890.0,105880.0,1.34411084]
[1749320516169,0.23589144,105890.0,105880.0,1.34411084]
[1749320517606,0.23589144,105890.0,105880.0,1.34407084]
[1749320517835,0.24533439,105890.0,105880.0,1.00407084]
[1749320518040,0.26422074,105890.0,105880.0,1.00407084]
[1749320518473,0.25477752,105890.0,105880.0,1.00407084]
[1749320520776,0.24533439,105890.0,105880.0,1.00407084]
[1749320520975,0.25477752,105890.0,105880.0,1.00407084]
[1749320522561,0.24533439,105890.0,105880.0,1.00407084]
[1749320522736,0.25477743,105890.0,105880.0,1.00407084]
[1749320523194,0.26422056,105890.0,105880.0,1.00407084]
[1749320523870,0.25477743,105890.0,105880.0,1.00407084]
[1749320524116,0.26422056,105890.0,105880.0,1.00407084]
[1749320528122,0.27366378,105890.0,105880.0,1.00407084]
[1749320528340,0.6657728,105890.0,105880.0,1.00407093]
[1749320528537,0.65632958,105890.0,105880.0,1.01351495]
[1749320529161,0.6657728,105890.0,105880.0,1.01351495]
[1749320529555,0.6752162,105890.0,105880.0,1.01351495]
[1749320530225,0.6657728,105890.0,105880.0,1.01351495]
[1749320530884,0.67521611,105890.0,105880.0,1.01351495]
[1749320531982,0.6657728,105890.0,105880.0,1.01351495]
[1749320532204,0.6752162,105890.0,105880.0,1.01351495]
[1749320532606,0.6657728,105890.0,105880.0,1.01351495]
[1749320532808,0.6752162,105890.0,105880.0,1.01351495]
[1749320533927,0.67521611,105890.0,105880.0,1.01351495]
[1749320537458,0.6657728,105890.0,105880.0,1.01351495]
[1749320537653,0.25477761,105890.0,105880.0,1.01351495]
[1749320537848,0.26422092,105890.0,105880.0,1.01351495]
[1749320538183,0.66577289,105890.0,105880.0,0.76855495]
[1749320538384,0.25477761,105890.0,105880.0,0.76855495]
[1749320538585,0.26422092,105890.0,105880.0,0.76855495]
[1749320540279,0.25477761,105890.0,105880.0,0.76855495]
[1749320540870,0.26422083,105890.0,105880.0,0.76855495]
[1749320541087,0.20479144,105890.0,105880.0,1.17010692]
[1749320541494,0.20479144,105890.0,105880.0,0.76855495]
[1749320544678,0.20479144,105890.0,105880.0,1.17010692]
[1749320545095,0.20479144,105890.0,105880.0,1.20040692]
[1749320551524,0.20479144,105890.0,105880.0,1.18510692]
[1749320552782,0.20479144,105890.0,105880.0,1.17010692]
[1749320553199,0.20479144,105890.0,105880.0,1.41506692]
[1749320553674,0.23639144,105890.0,105880.0,1.01351495]
[1749320554770,0.20479144,105890.0,105880.0,1.01351495]
[1749320556302,0.20479144,105890.0,105880.0,1.31141495]
[1749320557914,0.21423439,105890.0,105880.0,1.31141495]
[1749320558126,0.20479144,105890.0,105880.0,1.31141495]
[1749320558296,0.21423439,105890.0,105880.0,1.31141495]
[1749320558838,0.20479144,105890.0,105880.0,1.31141495]
[1749320559244,0.21423439,105890.0,105880.0,1.31141495]
[1749320560014,0.20479144,105890.0,105880.0,1.31141495]
[1749320560313,0.21423439,105890.0,105880.0,1.31141495]
[1749320563004,0.22367743,105890.0,105880.0,1.31141495]
[1749320563209,0.21423448,105890.0,105880.0,1.31141495]
[1749320563390,0.20479144,105890.0,105880.0,1.31141495]
[1749320563593,0.21423448,105890.0,105880.0,1.31141495]
[1749320564146,0.20479144,105890.0,105880.0,1.31141495]
[1749320564351,0.21423448,105890.0,105880.0,1.31141495]
[1749320564818,0.20479144,105890.0,105880.0,1.31141495]
[1749320565022,0.21423448,105890.0,105880.0,1.31141495]
[1749320565633,0.20479144,105890.0,105880.0,1.31141495]
[1749320565848,0.21423448,105890.0,105880.0,1.31141495]
[1749320567427,0.21423457,105890.0,105880.0,1.31141495]
[1749320567631,0.21423448,105890.0,105880.0,1.31141495]
[1749320568675,0.21423448,105890.0,105880.0,1.25511039]
[1749320568887,0.20479144,105890.0,105880.0,1.31142171]
[1749320569087,0.21423448,105890.0,105880.0,1.31142171]
[1749320569406,0.21423448,105890.0,105880.0,1.25511039]
[1749320571794,0.21423448,105890.0,105880.0,1.33021708]
[1749320573772,0.21423448,105890.0,105880.0,1.33009708]
[1749320576937,0.2236777,105890.0,105880.0,1.33009708]
[1749320577246,0.21423448,105890.0,105880.0,1.33009708]
[1749320577464,0.2236777,105890.0,105880.0,1.33009708]
[1749320578645,0.21423448,105890.0,105880.0,1.33009708]
[1749320578879,0.2236777,105890.0,105880.0,1.33009708]
[1749320580323,0.21423448,105890.0,105880.0,1.33009708]
[1749320580756,0.2236777,105890.0,105880.0,1.33009708]
[1749320580963,0.21423448,105890.0,105880.0,1.33009708]
[1749320581168,0.2236777,105890.0,105880.0,1.33009708]
[1749320581599,0.21423448,105890.0,105880.0,1.33009708]
[1749320581816,0.22367761,105890.0,105880.0,1.33009708]
[1749320584399,0.21423448,105890.0,105880.0,1.33009708]
[1749320586385,0.21427448,105890.0,105880.0,1.33009708]
[1749320588759,0.20483144,105890.0,105880.0,1.33009708]
[1749320588990,0.20483144,105890.0,105880.0,1.73164905]
[1749320589175,0.20483144,105890.0,105880.0,1.76414905]
[1749320589416,0.20483144,105890.0,105880.0,1.36259708]
[1749320590068,0.20483144,105890.0,105880.0,1.76414905]
[1749320593512,0.20483144,105890.0,105880.0,1.51918905]
[1749320598478,0.20483144,105890.0,105880.0,1.50318905]
[1749320599598,0.20483144,105890.0,105880.0,1.08513708]
[1749320599825,0.23663144,105890.0,105880.0,1.08513708]
[1749320600278,0.20483144,105890.0,105880.0,1.08513708]
[1749320601199,0.20483144,105890.0,105880.0,1.08505708]
[1749320601416,0.20483144,105890.0,105880.0,1.92016102]
[1749320601641,0.20483144,105890.0,105880.0,2.26016102]
[1749320602365,0.20483144,105890.0,105880.0,1.45705708]
[1749320602549,0.20483144,105890.0,105880.0,1.85860905]
[1749320605086,0.22371797,105890.0,105880.0,1.24174905]
[1749320605311,0.63868341,105890.0,105880.0,0.70260628]
[1749320605755,0.63868341,105890.0,105880.0,0.75889764]
[1749320607113,0.23713144,105890.0,105880.0,0.75889764]
[1749320607319,0.20483144,105890.0,105880.0,0.75889764]
[1749320608621,0.20483144,105890.0,105880.0,1.00385764]
[1749320615283,0.20483144,105890.0,105880.0,1.30175764]
[1749320617830,0.20483144,105890.0,105880.0,1.70330961]
[1749320619342,0.20483144,105890.0,105880.0,1.30175764]
[1749320619562,0.20483144,105890.0,105880.0,1.70330961]
[1749320630689,0.20483144,105890.0,105880.0,1.71900961]
[1749320631117,0.20483144,105890.0,105880.0,1.70330961]
[1749320632220,0.20483144,105890.0,105880.0,1.71900961]
[1749320633034,0.20483144,105890.0,105880.0,1.73400961]
[1749320633817,0.20483144,105890.0,105880.0,1.70330961]
[1749320634650,0.20483144,105890.0,105880.0,1.64701825]
[1749320635555,0.20483144,105890.0,105880.0,1.66201825]
[1749320638559,0.20483144,105890.0,105880.0,1.64701825]
[1749320640776,0.20483144,105890.0,105880.0,1.70335293]
[1749320641195,0.20483144,105890.0,105880.0,1.70335036]
[1749320641414,0.20483144,105890.0,105880.0,1.64701825]
[1749320641635,0.20483144,105890.0,105880.0,1.7033505]
[1749320648003,0.20483144,105890.0,105880.0,1.7348505]
[1749320648411,0.20483144,105890.0,105880.0,1.67851825]
[1749320648614,0.20483144,105890.0,105880.0,1.73484907]
[1749320649033,0.20483144,105890.0,105880.0,1.73485287]
[1749320649246,0.20483144,105890.0,105880.0,1.67851825]
[1749320649476,0.20483144,105890.0,105880.0,1.73485003]
[1749320649696,0.20483144,105890.0,105880.0,1.67851825]
[1749320650368,0.20483144,105890.0,105880.0,1.73485075]
[1749320650602,0.20483144,105890.0,105880.0,1.71945075]
[1749320650945,0.20483144,105890.0,105880.0,2.08057022]
[1749320651162,0.20483144,105890.0,105880.0,1.67901825]
[1749320661708,0.20483144,105890.0,105880.0,2.08057022]
[1749320661920,0.20483144,105890.0,105880.0,2.15567691]
[1749320662344,0.20483144,105890.0,105880.0,1.64697825]
[1749320662554,0.20483144,105890.0,105880.0,1.72208494]
[1749320662740,0.20483144,105890.0,105880.0,1.64697825]
[1749320663410,0.20483144,105890.0,105880.0,1.66347825]
[1749320668413,0.20483144,105890.0,105880.0,1.73858494]
[1749320668618,0.20483144,105890.0,105880.0,1.66347825]
[1749320669260,0.20483144,105890.0,105880.0,1.64697825]
[1749320670533,0.20483144,105890.0,105880.0,1.72208494]
[1749320670751,0.20483144,105890.0,105880.0,1.64697825]
[1749320673502,0.20483144,105890.0,105880.0,1.67857825]
[1749320674167,0.20483144,105890.0,105880.0,1.66327825]
[1749320677055,0.20483144,105890.0,105880.0,1.64697825]
[1749320679136,0.20483144,105890.0,105880.0,1.72208494]
[1749320679294,0.20483144,105890.0,105880.0,1.64697825]
[1749320682426,0.20483144,105890.0,105880.0,1.24542628]
[1749320682685,0.20483144,105890.0,105880.0,1.64697825]
[1749320683690,0.20483144,105890.0,105880.0,1.72208494]
[1749320683913,0.20483144,105890.0,105880.0,1.64697825]
[1749320684555,0.21427439,105890.0,105880.0,1.27257825]
[1749320684766,0.23603144,105890.0,105880.0,1.7032461]
[1749320685620,0.24547439,105890.0,105880.0,1.7032461]
[1749320686035,0.23603144,105890.0,105880.0,1.7032461]
[1749320686933,0.24547448,105890.0,105880.0,1.7032461]
[1749320687559,0.23603144,105890.0,105880.0,1.7032461]
[1749320688190,0.23603144,105890.0,105880.0,0.92737413]
[1749320688408,0.24547448,105890.0,105880.0,1.7032061]
[1749320688876,0.23603144,105890.0,105880.0,1.7032061]
[1749320689086,0.24547457,105890.0,105880.0,1.7032061]
[1749320689298,0.23603144,105890.0,105880.0,1.7032061]
[1749320689523,0.24547448,105890.0,105880.0,1.7032061]
[1749320689742,0.23603144,105890.0,105880.0,1.7032061]
[1749320690197,0.24547439,105890.0,105880.0,1.7032061]
[1749320693189,0.23603144,105890.0,105880.0,1.7032061]
[1749320693403,0.24547448,105890.0,105880.0,1.7032061]
[1749320693925,0.23603144,105890.0,105880.0,1.7032061]
[1749320694574,0.24547448,105890.0,105880.0,1.7032061]
[1749320696087,0.24547448,105890.0,105880.0,1.3289261]
[1749320696298,0.2550177,105890.0,105880.0,1.7031661]
[1749320696508,0.2550177,105890.0,105880.0,1.30161413]
[1749320696695,0.24557448,105890.0,105880.0,1.7031661]
[1749320697726,0.2550177,105890.0,105880.0,1.7031661]
[1749320697966,0.20483144,105890.0,105880.0,2.19737691]
[1749320698194,0.20483144,105890.0,105880.0,2.21608319]
[1749320698368,0.20483144,105890.0,105880.0,2.24445319]
[1749320701817,0.20483144,105890.0,105880.0,2.15064022]
[1749320703745,0.20483144,105890.0,105880.0,2.22559535]
[1749320705047,0.20483144,105890.0,105880.0,2.52349535]
[1749320706536,0.20483144,105890.0,105880.0,2.52649535]
[1749320707833,0.20483144,105890.0,105880.0,2.52949535]
[1749320711153,0.20483144,105890.0,105880.0,2.45454022]
[1749320711800,0.20483144,105890.0,105880.0,2.52945052]
[1749320714768,0.20483144,105890.0,105880.0,2.52937052]
[1749320716707,0.20483144,105890.0,105880.0,2.93092249]
[1749320717149,0.20483144,105890.0,105880.0,2.52937052]
[1749320718294,0.20483144,105890.0,105880.0,2.93092249]
[1749320718519,0.20483144,105890.0,105880.0,2.85601219]
[1749320722725,0.20483144,105890.0,105880.0,2.94982516]
[1749320725016,0.20483144,105890.0,105880.0,2.54827319]
[1749320730560,0.20483144,105890.0,105880.0,2.17411319]
[1749320730770,0.20483144,105890.0,105880.0,2.54823319]
[1749320730978,0.20483144,105890.0,105880.0,2.26147319]
[1749320731188,0.20483144,105890.0,105880.0,2.54823319]
[1749320735081,0.20483144,105890.0,105880.0,1.74512925]
[1749320735314,0.20483144,105890.0,105880.0,2.54823319]
[1749320739139,0.20483144,105890.0,105880.0,2.82035319]
[1749320741958,0.20483144,105890.0,105880.0,2.01724925]
[1749320742155,0.20483144,105890.0,105880.0,2.80395319]
[1749320743540,0.20483144,105890.0,105880.0,2.81905319]
[1749320745605,0.20483144,105890.0,105880.0,2.80395319]
[1749320750993,0.20483144,105890.0,105880.0,2.82035319]
[1749320753830,0.20483144,105890.0,105880.0,2.80395319]
[1749320759354,0.20483144,105890.0,105880.0,2.42983319]
[1749320759563,0.20483144,105890.0,105880.0,2.78851319]
[1749320770363,0.20483144,105890.0,105880.0,2.78812834]
[1749320774817,0.20483144,105890.0,105880.0,2.81962834]
[1749320776005,0.20483144,105890.0,105880.0,3.22118031]
[1749320776212,0.20483144,105890.0,105880.0,2.81962834]
[1749320776403,0.20483144,105890.0,105880.0,3.22118031]
[1749320777353,0.20483144,105890.0,105880.0,2.81962834]
[1749320778978,0.20483144,105890.0,105880.0,3.22118031]
[1749320779522,0.20483144,105890.0,105880.0,2.81962834]
[1749320782898,0.20483144,105890.0,105880.0,2.80402834]
[1749320789767,0.20483144,105890.0,105880.0,2.81922834]
[1749320790319,0.20483144,105890.0,105880.0,2.80402834]
[1749320791324,0.20483144,105890.0,105880.0,2.78812834]
[1749320814138,0.20483144,105890.0,105880.0,2.78362834]
[1749320829523,0.20483144,105890.0,105880.0,1.6064444]
[1749320829747,0.23633144,105890.0,105880.0,2.78358834]
[1749320830781,0.23633144,105890.0,105880.0,2.49690834]
[1749320831017,0.23633144,105890.0,105880.0,2.78358834]
[1749320831804,0.23633144,105890.0,105880.0,2.68977537]
[1749320833245,0.23633144,105890.0,105880.0,2.76484732]
[1749320834296,0.23633144,105890.0,105880.0,1.58770338]
[1749320834552,0.24577439,105890.0,105880.0,2.0224845]
[1749320834743,0.24577439,105890.0,105880.0,1.94741255]
[1749320834877,0.24577439,105890.0,105880.0,2.00370306]
[1749320835084,0.24577439,105890.0,105880.0,2.01224391]
[1749320835291,0.24577439,105890.0,105880.0,1.67224391]
[1749320835491,0.24577439,105890.0,105880.0,1.67324391]
[1749320835678,0.24577439,105890.0,105880.0,1.67224391]
[1749320835872,0.25521761,105890.0,105880.0,1.67224391]
[1749320836083,0.24577439,105890.0,105880.0,1.67324391]
[1749320836389,0.23633144,105890.0,105880.0,1.29920391]
[1749320836618,0.24577439,105890.0,105880.0,1.67324391]
[1749320836954,0.24677439,105890.0,105880.0,1.67324391]
[1749320837360,0.24677439,105890.0,105880.0,1.27173194]
[1749320837563,0.24677439,105890.0,105880.0,1.67328391]
[1749320837764,0.24677439,105890.0,105880.0,1.67228391]
[1749320839478,0.23733144,105890.0,105880.0,1.67228391]
[1749320839680,0.23733144,105890.0,105880.0,1.6159934]
[1749320840300,0.23733144,105890.0,105880.0,1.9138934]
[1749320841865,0.23733144,105890.0,105880.0,1.51234143]
[1749320842073,0.23733144,105890.0,105880.0,1.9138934]
[1749320842503,0.23733144,105890.0,105880.0,1.6417734]
[1749320844811,0.24677448,105890.0,105880.0,1.6417734]
[1749320845034,0.23733144,105890.0,105880.0,1.6417734]
[1749320851939,0.24677439,105890.0,105880.0,1.6417734]
[1749320852140,0.24677448,105890.0,105880.0,1.6417734]
[1749320852344,0.23733144,105890.0,105880.0,1.6417734]
[1749320854930,0.24677448,105890.0,105880.0,1.24022143]
[1749320855089,0.20583144,105890.0,105880.0,2.45501588]
[1749320855290,0.20583144,105890.0,105880.0,2.41502537]
[1749320855691,0.20583144,105890.0,105880.0,2.49009732]
[1749320856077,0.20583144,105890.0,105880.0,2.51846932]
[1749320863037,0.20483144,105890.0,105880.0,2.51846932]
[1749320863883,0.20483144,105890.0,105880.0,2.51946932]
[1749320869173,0.20483144,105890.0,105880.0,1.71636538]
[1749320869391,0.20483144,105890.0,105880.0,2.51946932]
[1749320870468,0.20483144,105890.0,105880.0,2.49109732]
[1749320880842,0.20483144,105890.0,105880.0,2.47479732]
[1749320882949,0.20483144,105890.0,105880.0,2.49039732]
[1749320885917,0.20483144,105890.0,105880.0,1.65629338]
[1749320886110,0.23713144,105890.0,105880.0,2.45939732]
[1749320887144,0.23713144,105890.0,105880.0,2.05784535]
[1749320887607,0.23713144,105890.0,105880.0,2.05780535]
[1749320887809,0.23713144,105890.0,105880.0,1.9827334]
[1749320888016,0.24657439,105890.0,105880.0,1.9827334]
[1749320888217,0.23713144,105890.0,105880.0,1.9827334]
[1749320888619,0.23713144,105890.0,105880.0,1.77108535]
[1749320888824,0.23717144,105890.0,105880.0,2.05780535]
[1749320888997,0.23717144,105890.0,105880.0,1.9827334]
[1749320889196,0.23717144,105890.0,105880.0,2.05780535]
[1749320889660,0.23717144,105890.0,105880.0,2.45935732]
[1749320890388,0.23717144,105890.0,105880.0,2.38428537]
[1749320890972,0.23717144,105890.0,105880.0,1.9827334]